[Event "RUS-chT Higher League 2021"]
[Site "Sochi"]
[Date "2021.05.02"]
[Round "2.4"]
[White "Gutenev, Alexander"]
[Black "Potapov, Alexander"]
[Result "0-1"]
[ECO "C78"]
[WhiteElo "2431"]
[BlackElo "2424"]
[Annotator "NA"]
[PlyCount "118"]
[EventDate "2021.05.01"]
[EventType "team-tourn"]
[EventCountry "RUS"]
[SourceTitle "playchess.com"]
[Source "ChessBase"]
[SourceQuality "1"]
[TimeControl "40/5400+30:1800+30"]

1. e4 {[%emt 0:00:00]} e5 {[%emt 0:00:00]} 2. Nf3 {[%emt 0:00:00]} Nc6 {[%emt 0:00:00]} 3. Bb5 {[%emt 0:00:02]} a6 {[%emt 0:00:00]} 4. Ba4 {[%emt 0:00:15]} Nf6 {[%emt 0:00:00]} 5. O-O {[%emt 0:00:15]} b5 {[%emt 0:00:04]} 6. Bb3 {[%emt 0:00:07]} Bb7 {[%emt 0:00:04]} 7. d3 {[%emt 0:02:07]} Be7 {[%emt 0:00:11]} 8. a3 {[%emt 0:03:27]} O-O {[%emt 0:00:35]} 9. Nc3 {[%emt 0:00:03]} d6 {[%emt 0:00:19]} 10. Ne2 {[%emt 0:01:34]} d5 {[%emt 0:08:00]} 11. exd5 {[%emt 0:00:48]} Nxd5 {[%emt 0:00:14]} 12. Re1 {[%emt 0:00:12]} Kh8 {[%emt 0:10:18]} 13. c3 {[%emt 0:07:17]} f5 {[%emt 0:05:28]} 14. Ng3 {[%emt 0:09:05]} Qd6 {[%emt 0:01:12]} 15. Ng5 {[%emt 0:23:53]} g6 {[%emt 0:15:43]} 16. d4 {[%emt 0:04:07]} e4 {[%emt 0:05:51]} 17. Nh3 {[%emt 0:02:50]} Nd8 {[%emt 0:02:16]} 18. Bh6 {[%emt 0:03:32]} Re8 {[%emt 0:01:55]} 19. a4 {[%emt 0:02:20]} Nf7 {[%emt 0:00:52]} 20. Bd2 {[%emt 0:00:07]} Rad8 {[%emt 0:05:06]} 21. Qe2 {[%emt 0:03:32]} Qb6 {[%emt 0:05:18]} 22. axb5 {[%emt 0:10:18]} axb5 {[%emt 0:00:11]} 23. Nf4 {[%emt 0:04:06]} Bg5 {[%emt 0:07:20]} 24. Bxd5 {[%emt 0:04:18]} Bxd5 {[%emt 0:01:56]} 25. Nxd5 {[%emt 0:01:08]} Rxd5 {[%emt 0:00:06]} 26. Bxg5 {[%emt 0:01:06]} Nxg5 {[%emt 0:00:06]} 27. Qe3 {[%emt 0:00:12]} Ne6 {[%emt 0:02:06]} 28. f3 {[%emt 0:03:10]} Rdd8 {[%emt 0:01:26]} 29. Ne2 {[%emt 0:03:14]} c5 {[%emt 0:08:38]} 30. Rad1 {[%emt 0:02:14]} cxd4 {[%emt 0:04:37]} 31. Nxd4 {[%emt 0:00:46]} Nxd4 {[%emt 0:02:44]} 32. Rxd4 {[%emt 0:00:24]} Rxd4 {[%emt 0:01:19]} 33. cxd4 {[%emt 0:00:08]} f4 {[%emt 0:01:57]} 34. Qxf4 {[%emt 0:01:03]} Qxd4+ {[%emt 0:00:07]} 35. Qe3 {[%emt 0:04:39]} Qxb2 {[%emt 0:00:10]} 36. fxe4 {[%emt 0:00:04]} Qe5 {[%emt 0:01:03]} 37. Rb1 {[%emt 0:00:36]} Ra8 {[%emt 0:00:54]} 38. Qe2 {[%emt 0:01:33]} Ra1 {[%emt 0:01:21]} 39. Rxa1 Qd4+ {[%emt 0:01:02]} 40. Kf1 {[%emt 0:00:00]} Qxa1+ {[%emt 0:00:00]} 41. Kf2 {[%emt 0:01:03]} Qd4+ {[%emt 0:00:32]} 42. Kf3 {[%emt 0:02:10]} b4 {[%emt 0:01:43]} 43. Qb5 {[%emt 0:01:24]} Kg7 {[%emt 0:00:59]} 44. h4 {[%emt 0:03:42]} Qd1+ {[%emt 0:03:37]} 45. Kf4 {[%emt 0:00:49]} Qd6+ {[%emt 0:05:20]} 46. Kf3 {[%emt 0:01:11]} h5 {[%emt 0:01:15]} 47. g3 {[%emt 0:07:48]} Qd1+ {[%emt 0:01:29]} 48. Ke3 {[%emt 0:00:29]} Qe1+ {[%emt 0:00:15]} 49. Kf3 {[%emt 0:00:08]} Qc3+ {[%emt 0:00:06]} 50. Kf4 {[%emt 0:00:45]} b3 {[%emt 0:00:11]} 51. g4 {[%emt 0:04:16]} hxg4 {[%emt 0:04:43]} 52. Qd7+ {[%emt 0:06:17]} Kh6 {[%emt 0:00:18]} 53. Qe7 {[%emt 0:03:16]} Qf3+ {[%emt 0:02:58]} 54. Ke5 {[%emt 0:00:05]} g3 {[%emt 0:00:21]} 55. Qd8 {[%emt 0:04:09]} Qc3+ {[%emt 0:00:07]} 56. Kf4 {[%emt 0:00:13]} g2 {[%emt 0:00:38]} 57. e5 {[%emt 0:02:25]} Qc1+ {[%emt 0:00:40]} 58. Kf3 {[%emt 0:00:32]} Qf1+ {[%emt 0:00:06]} 59. Ke4 {[%emt 0:00:11]} Qf5+ {[%emt 0:00:11]} 0-1

[Event "RUS-chT Higher League 2021"]
[Site "Sochi"]
[Date "2021.05.02"]
[Round "2.7"]
[White "Garifullina, Leya"]
[Black "Ovod, Evgenija"]
[Result "1/2-1/2"]
[ECO "C65"]
[WhiteElo "2386"]
[BlackElo "2341"]
[Annotator "NA"]
[PlyCount "75"]
[EventDate "2021.05.01"]
[EventType "team-tourn"]
[EventCountry "RUS"]
[SourceTitle "playchess.com"]
[Source "ChessBase"]
[SourceQuality "1"]
[TimeControl "40/5400+30:1800+30"]

1. e4 {[%emt 0:00:00]} e5 {[%emt 0:00:00]} 2. Nf3 {[%emt 0:00:00]} Nc6 {[%emt 0:00:00]} 3. Bb5 {[%emt 0:00:00]} Nf6 {[%emt 0:00:00]} 4. O-O {[%emt 0:00:07]} Bc5 {[%emt 0:00:00]} 5. c3 {[%emt 0:01:38]} O-O {[%emt 0:00:02]} 6. d4 {[%emt 0:02:47]} Bb6 {[%emt 0:00:07]} 7. Re1 {[%emt 0:07:06]} d6 {[%emt 0:00:11]} 8. h3 {[%emt 0:02:09]} Qe7 {[%emt 0:06:21]} 9. Bxc6 {[%emt 0:08:00]} bxc6 {[%emt 0:00:04]} 10. dxe5 {[%emt 0:00:07]} dxe5 {[%emt 0:00:03]} 11. Qa4 {[%emt 0:02:08]} Rb8 {[%emt 0:17:11]} 12. Na3 {[%emt 0:07:04]} Ne8 {[%emt 0:21:48]} 13. Nc4 {[%emt 0:04:23]} f6 {[%emt 0:00:32]} 14. Be3 {[%emt 0:06:06]} Nd6 {[%emt 0:03:01]} 15. Nfd2 {[%emt 0:03:15]} Nxc4 {[%emt 0:09:31]} 16. Nxc4 {[%emt 0:00:53]} Bxe3 {[%emt 0:00:09]} 17. Rxe3 {[%emt 0:00:53]} Qc5 {[%emt 0:00:04]} 18. Re2 {[%emt 0:09:00]} Rd8 {[%emt 0:08:28]} 19. Ne3 {[%emt 0:04:18]} Be6 {[%emt 0:01:17]} 20. Qc2 {[%emt 0:05:09]} a5 {[%emt 0:02:22]} 21. b3 {[%emt 0:03:24]} Rd6 {[%emt 0:02:09]} 22. Rb1 {[%emt 0:03:32]} Qa3 {[%emt 0:04:31]} 23. Qb2 {[%emt 0:02:36]} Qxb2 {[%emt 0:00:46]} 24. Rbxb2 {[%emt 0:01:14]} c5 {[%emt 0:00:17]} 25. Red2 {[%emt 0:01:20]} Kf7 {[%emt 0:09:43]} 26. Kf1 {[%emt 0:01:02]} Ke7 {[%emt 0:05:01]} 27. Ke2 {[%emt 0:00:51]} Kd7 {[%emt 0:00:17]} 28. Rxd6+ {[%emt 0:02:37]} cxd6 {[%emt 0:00:06]} 29. c4 {[%emt 0:00:29]} a4 {[%emt 0:00:45]} 30. Kd3 {[%emt 0:00:29]} axb3 {[%emt 0:00:45]} 31. axb3 {[%emt 0:01:24]} Kc6 {[%emt 0:01:38]} 32. Kc3 {[%emt 0:00:09]} Ra8 {[%emt 0:00:19]} 33. Rd2 {[%emt 0:00:06]} Ra7 {[%emt 0:01:09]} 34. Rd1 {[%emt 0:00:29]} Ra2 {[%emt 0:01:17]} 35. Rd2 {[%emt 0:00:05]} Ra1 {[%emt 0:03:25]} 36. Rd1 {[%emt 0:01:02]} Ra2 {[%emt 0:01:10]} 37. Rd2 {[%emt 0:00:09]} Ra1 {[%emt 0:00:04]} 38. Rd1 {[%emt 0:00:05]} 1/2-1/2

[Event "RUS-chT Higher League 2021"]
[Site "Sochi"]
[Date "2021.05.02"]
[Round "2.8"]
[White "Kolmagorov, Alexey"]
[Black "Pingin, Artem"]
[Result "1/2-1/2"]
[ECO "E09"]
[WhiteElo "2129"]
[BlackElo "2347"]
[Annotator "NA"]
[PlyCount "77"]
[EventDate "2021.05.01"]
[EventType "team-tourn"]
[EventCountry "RUS"]
[SourceTitle "playchess.com"]
[Source "ChessBase"]
[SourceQuality "1"]
[TimeControl "40/5400+30:1800+30"]

1. c4 {[%emt 0:00:00]} e6 {[%emt 0:00:00]} 2. g3 {[%emt 0:00:00]} Nf6 {[%emt 0:00:00]} 3. Bg2 {[%emt 0:00:16]} d5 {[%emt 0:00:00]} 4. Nf3 {[%emt 0:00:04]} Be7 {[%emt 0:00:00]} 5. O-O {[%emt 0:00:13]} O-O {[%emt 0:00:00]} 6. d4 {[%emt 0:00:03]} Nbd7 {[%emt 0:00:05]} 7. Qc2 {[%emt 0:00:28]} c6 {[%emt 0:00:06]} 8. Nbd2 {[%emt 0:00:05]} b6 {[%emt 0:00:04]} 9. e4 {[%emt 0:00:13]} dxc4 {[%emt 0:00:04]} 10. Nxc4 {[%emt 0:00:07]} Bb7 {[%emt 0:00:04]} 11. Bf4 {[%emt 0:01:41]} c5 {[%emt 0:00:25]} 12. Rfe1 {[%emt 0:00:47]} cxd4 {[%emt 0:00:06]} 13. Nd6 {[%emt 0:00:48]} Bxd6 {[%emt 0:00:10]} 14. Bxd6 {[%emt 0:00:07]} d3 {[%emt 0:00:02]} 15. Qxd3 {[%emt 0:00:44]} Bxe4 {[%emt 0:00:07]} 16. Qd4 {[%emt 0:00:46]} e5 {[%emt 0:00:06]} 17. Qa4 {[%emt 0:00:20]} Re8 {[%emt 0:00:07]} 18. Rad1 {[%emt 0:00:12]} Bxf3 {[%emt 0:00:13]} 19. Bxf3 {[%emt 0:00:06]} e4 {[%emt 0:00:04]} 20. Bxe4 {[%emt 0:00:04]} Nxe4 {[%emt 0:00:18]} 21. Rxe4 {[%emt 0:00:06]} Rxe4 {[%emt 0:00:04]} 22. Qxe4 {[%emt 0:00:05]} Nc5 {[%emt 0:00:07]} 23. Qf3 {[%emt 0:02:51]} Ne6 {[%emt 0:00:27]} 24. Be7 {[%emt 0:01:08]} Qe8 {[%emt 0:03:03]} 25. Qb7 {[%emt 0:04:50]} Qc8 {[%emt 0:20:29]} 26. Qxc8+ {[%emt 0:17:48]} Rxc8 {[%emt 0:00:05]} 27. Rd7 {[%emt 0:00:15]} Rc7 {[%emt 0:00:18]} 28. Rxc7 {[%emt 0:00:06]} Nxc7 {[%emt 0:00:03]} 29. Kf1 {[%emt 0:01:40]} f6 {[%emt 0:24:17]} 30. Bd6 {[%emt 0:03:35]} Nd5 {[%emt 0:01:34]} 31. Ke2 {[%emt 0:01:20]} Kf7 {[%emt 0:00:34]} 32. Kd3 {[%emt 0:03:25]} Ke6 {[%emt 0:00:30]} 33. Bf8 {[%emt 0:01:55]} g6 {[%emt 0:01:28]} 34. Kd4 {[%emt 0:13:08]} Nc7 {[%emt 0:01:56]} 35. Bb4 {[%emt 0:07:02]} Kd7 {[%emt 0:07:01]} 36. Ke4 {[%emt 0:06:48]} Ke6 {[%emt 0:01:25]} 37. Kd4 {[%emt 0:01:46]} Kd7 {[%emt 0:08:05]} 38. Ke4 {[%emt 0:00:11]} Ke6 {[%emt 0:09:55]} 39. Kd4 {[%emt 0:00:05]} 1/2-1/2

[Event "RUS-chT Higher League 2021"]
[Site "Sochi"]
[Date "2021.05.02"]
[Round "2.10"]
[White "Balashov, Yuri S"]
[Black "Novikov, Maxim"]
[Result "1-0"]
[ECO "B74"]
[WhiteElo "2461"]
[BlackElo "2469"]
[Annotator "ChessBase"]
[PlyCount "111"]
[EventDate "2021.05.01"]
[EventType "team-tourn"]
[EventCountry "RUS"]
[SourceTitle "playchess.com"]
[Source "ChessBase"]
[SourceQuality "1"]
[TimeControl "40/5400+30:1800+30"]

1. e4 {[%emt 0:00:00]} c5 {[%emt 0:00:00]} 2. Nf3 {[%emt 0:00:00]} d6 {[%emt 0:00:00]} 3. d4 {[%emt 0:00:13]} cxd4 {[%emt 0:00:00]} 4. Nxd4 {[%emt 0:00:05]} Nf6 {[%emt 0:00:01]} 5. Nc3 {[%emt 0:00:08]} g6 {[%emt 0:00:21]} 6. Be2 {[%emt 0:00:55]} Bg7 {[%emt 0:00:12]} 7. O-O {[%emt 0:00:17]} O-O {[%emt 0:00:09]} 8. Be3 {[%emt 0:01:22]} Nc6 {[%emt 0:00:10]} 9. Nb3 {[%emt 0:01:19]} Be6 {[%emt 0:00:38]} 10. f4 {[%emt 0:00:42]} Na5 {[%emt 0:01:22]} 11. f5 {[%emt 0:16:06]} Bc4 {[%emt 0:13:56]} 12. Bd3 {[%emt 0:04:18]} Nxb3 {[%emt 0:23:47]} 13. axb3 {[%emt 0:00:20]} Bxd3 {[%emt 0:00:05]} 14. cxd3 {[%emt 0:04:52]} a6 15. Qf3 {[%emt 0:05:18]} d5 {[%emt 0:13:57]} 16. Bf2 {[%emt 0:02:13]} d4 {[%emt 0:06:05]} 17. Ne2 {[%emt 0:09:18]} Nd7 {[%emt 0:01:46]} 18. Nxd4 {[%emt 0:01:10]} Nc5 {[%emt 0:00:53]} 19. b4 {[%emt 0:01:19]} Bxd4 {[%emt 0:00:55]} 20. bxc5 {[%emt 0:00:10]} Bxf2+ {[%emt 0:00:34]} 21. Rxf2 {[%emt 0:02:19]} Qd4 {[%emt 0:00:22]} 22. Rc1 {[%emt 0:01:52]} Rad8 {[%emt 0:04:48]} 23. Rc3 {[%emt 0:01:44]} a5 {[%emt 0:12:08]} 24. h4 {[%emt 0:08:18]} f6 {[%emt 0:03:38]} 25. Kh2 {[%emt 0:01:50]} Rf7 {[%emt 0:03:11]} 26. Re2 {[%emt 0:08:18]} Rg7 {[%emt 0:01:55]} 27. g3 {[%emt 0:01:27]} Kh8 {[%emt 0:02:53]} 28. fxg6 {[%emt 0:04:31]} Rxg6 {[%emt 0:00:28]} 29. Qe3 {[%emt 0:01:56]} Qe5 {[%emt 0:00:58]} 30. Rf2 {[%emt 0:02:22]} a4 {[%emt 0:04:53]} 31. Rf5 {[%emt 0:03:16]} Qe6 {[%emt 0:00:09]} 32. Rc4 {[%emt 0:02:54]} Rdg8 {[%emt 0:02:42]} 33. Rf3 {[%emt 0:00:37]} Rg4 {[%emt 0:00:37]} 34. Qd4 {[%emt 0:04:44]} Qc6 {[%emt 0:01:22]} 35. Qe3 {[%emt 0:05:44]} Qb5 {[%emt 0:01:24]} 36. Rc2 {[%emt 0:00:28]} Qb3 {[%emt 0:00:11]} 37. Rg2 {[%emt 0:01:00]} Qf7 {[%emt 0:00:19]} 38. e5 {[%emt 0:00:59]} Qg7 {[%emt 0:01:27]} 39. Re2 {[%emt 0:01:54]} f5 {[%emt 0:00:09]} 40. e6 {[%emt 0:00:00]} f4 {[%emt 0:00:00]} 41. Rxf4 {[%emt 0:03:09]} Rxg3 {[%emt 0:01:14]} 42. Qd4 {[%emt 0:00:42]} Qxd4 {[%emt 0:09:34]} 43. Rxd4 {[%emt 0:00:10]} R3g4 {[%emt 0:00:02]} 44. Rde4 {[%emt 0:01:20]} Rg3 {[%emt 0:03:14]} 45. Rd2 {[%emt 0:05:29]} R3g4 {[%emt 0:06:53]} 46. Rxg4 {[%emt 0:01:08]} Rxg4 {[%emt 0:00:04]} 47. d4 {[%emt 0:00:27]} Kg7 {[%emt 0:00:06]} 48. d5 {[%emt 0:01:37]} Kf6 {[%emt 0:00:06]} 49. d6 {[%emt 0:00:36]} Rg8 {[%emt 0:01:49]} 50. d7 {[%emt 0:01:01]} Rd8 {[%emt 0:00:04]} 51. Re2 {[%emt 0:00:43]} Rg8 {[%emt 0:00:06]} 52. Re4 {[%emt 0:01:18]} h5 {[%emt 0:05:09]} 53. Rb4 {[%emt 0:00:57]} Kxe6 {[%emt 0:00:37]} 54. Rxb7 {[%emt 0:00:11]} Rd8 {[%emt 0:04:26]} 55. c6 {[%emt 0:00:13]} Kd6 {[%emt 0:00:01]} 56. c7 {[%emt 0:00:18]} 1-0

[Event "RUS-chT Higher League 2021"]
[Site "Sochi"]
[Date "2021.05.02"]
[Round "2.11"]
[White "Sadovsky, Artem"]
[Black "Kalegin, Evgenij"]
[Result "0-1"]
[ECO "A05"]
[WhiteElo "2408"]
[BlackElo "2414"]
[Annotator "NA"]
[PlyCount "112"]
[EventDate "2021.05.01"]
[EventType "team-tourn"]
[EventCountry "RUS"]
[SourceTitle "playchess.com"]
[Source "ChessBase"]
[SourceQuality "1"]
[TimeControl "40/5400+30:1800+30"]

1. Nf3 {[%emt 0:00:00]} Nf6 {[%emt 0:00:07]} 2. c4 {[%emt 0:00:00]} g6 {[%emt 0:00:48]} 3. b3 {[%emt 0:01:50]} Bg7 {[%emt 0:01:38]} 4. Bb2 {[%emt 0:00:04]} O-O {[%emt 0:02:32]} 5. d4 {[%emt 0:04:49]} c5 {[%emt 0:03:31]} 6. e3 {[%emt 0:11:36]} cxd4 {[%emt 0:03:24]} 7. Nxd4 {[%emt 0:00:50]} d5 {[%emt 0:01:16]} 8. Nc3 {[%emt 0:12:16]} Qa5 {[%emt 0:03:14]} 9. Qd2 {[%emt 0:21:43]} dxc4 {[%emt 0:08:58]} 10. Bxc4 {[%emt 0:00:12]} Rd8 {[%emt 0:00:22]} 11. Ne4 {[%emt 0:02:48]} Qb6 {[%emt 0:06:58]} 12. Ng5 {[%emt 0:02:27]} e6 {[%emt 0:01:52]} 13. O-O-O {[%emt 0:05:35]} Na6 {[%emt 0:09:37]} 14. Bc3 {[%emt 0:01:39]} Qc5 {[%emt 0:05:53]} 15. Qb2 {[%emt 0:07:26]} Nd5 {[%emt 0:08:07]} 16. Ndxe6 {[%emt 0:11:29]} Bxe6 {[%emt 0:00:32]} 17. Bxg7 {[%emt 0:00:40]} Nxe3 {[%emt 0:10:14]} 18. Nxe6 {[%emt 0:05:16]} Nxc4 {[%emt 0:02:25]} 19. Nxc5 {[%emt 0:02:51]} Nxb2 {[%emt 0:01:00]} 20. Kxb2 {[%emt 0:02:56]} Nxc5 {[%emt 0:01:29]} 21. Bd4 {[%emt 0:00:27]} Rd5 {[%emt 0:04:02]} 22. Be3 {[%emt 0:03:29]} Nd3+ {[%emt 0:04:21]} 23. Kb1 {[%emt 0:00:01]} a6 {[%emt 0:13:45]} 24. g4 {[%emt 0:00:14]} Rad8 {[%emt 0:00:49]} 25. g5 {[%emt 0:01:14]} R8d6 {[%emt 0:01:40]} 26. h4 {[%emt 0:00:20]} f5 {[%emt 0:00:30]} 27. Rd2 {[%emt 0:00:41]} f4 {[%emt 0:00:49]} 28. Ba7 {[%emt 0:00:03]} Kf7 {[%emt 0:01:35]} 29. Rhd1 {[%emt 0:00:33]} Ke6 {[%emt 0:00:46]} 30. Re2+ {[%emt 0:00:17]} Kf5 {[%emt 0:00:33]} 31. Re7 {[%emt 0:00:45]} Rd7 {[%emt 0:00:17]} 32. Re8 {[%emt 0:00:53]} Kg4 {[%emt 0:00:35]} 33. Rg1+ {[%emt 0:00:15]} Kf3 {[%emt 0:00:25]} 34. Rf8 {[%emt 0:00:26]} Nxf2 {[%emt 0:00:52]} 35. Bb8 {[%emt 0:00:51]} Rd4 {[%emt 0:00:47]} 36. Rc1 {[%emt 0:00:32]} Rd8 {[%emt 0:00:46]} 37. Rc3+ {[%emt 0:00:30]} Kg4 {[%emt 0:00:38]} 38. Rxd8 {[%emt 0:00:29]} Rxd8 {[%emt 0:00:02]} 39. Ba7 {[%emt 0:00:20]} Ne4 {[%emt 0:00:53]} 40. Rc7 {[%emt 0:00:00]} Kxh4 {[%emt 0:00:00]} 41. Rxh7+ {[%emt 0:01:22]} Kxg5 {[%emt 0:00:55]} 42. Rxb7 {[%emt 0:00:14]} Kg4 {[%emt 0:03:30]} 43. a4 {[%emt 0:03:09]} g5 {[%emt 0:01:24]} 44. b4 {[%emt 0:00:21]} f3 {[%emt 0:01:18]} 45. Rf7 {[%emt 0:04:40]} Kg3 {[%emt 0:00:36]} 46. Kc2 {[%emt 0:00:29]} f2 {[%emt 0:00:56]} 47. b5 {[%emt 0:00:40]} axb5 {[%emt 0:00:16]} 48. axb5 {[%emt 0:00:04]} Rd2+ {[%emt 0:10:58]} 49. Kb3 {[%emt 0:05:05]} Rd1 {[%emt 0:01:12]} 50. Rxf2 {[%emt 0:04:19]} Nxf2 {[%emt 0:00:12]} 51. b6 {[%emt 0:00:05]} Ne4 {[%emt 0:01:58]} 52. Kc4 {[%emt 0:00:05]} Nd6+ {[%emt 0:02:38]} 53. Kc5 {[%emt 0:00:06]} Nb7+ {[%emt 0:00:18]} 54. Kc6 {[%emt 0:00:05]} Na5+ {[%emt 0:00:06]} 55. Kb5 {[%emt 0:00:27]} Rd5+ {[%emt 0:00:10]} 56. Ka6 {[%emt 0:00:04]} Kf3 {[%emt 0:00:24]} 0-1

[Event "RUS-chT Higher League 2021"]
[Site "Sochi"]
[Date "2021.05.02"]
[Round "2.12"]
[White "Zhelnin, Vladimir V"]
[Black "Manelyuk, Daniil"]
[Result "0-1"]
[ECO "C15"]
[WhiteElo "2408"]
[BlackElo "2345"]
[Annotator "ChessBase"]
[PlyCount "158"]
[EventDate "2021.05.01"]
[EventType "team-tourn"]
[EventCountry "RUS"]
[SourceTitle "playchess.com"]
[Source "ChessBase"]
[SourceQuality "1"]
[TimeControl "40/5400+30:1800+30"]

1. e4 {[%emt 0:00:00]} e6 {[%emt 0:00:00]} 2. d4 {[%emt 0:00:00]} d5 {[%emt 0:00:00]} 3. Nc3 {[%emt 0:00:06]} Bb4 {[%emt 0:00:00]} 4. Nge2 {[%emt 0:04:58]} Nf6 {[%emt 0:01:54]} 5. Bg5 {[%emt 0:04:10]} dxe4 {[%emt 0:05:11]} 6. a3 {[%emt 0:01:16]} Be7 {[%emt 0:00:24]} 7. Bxf6 {[%emt 0:04:49]} Bxf6 {[%emt 0:00:43]} 8. Nxe4 {[%emt 0:00:11]} O-O {[%emt 0:01:17]} 9. Qd3 {[%emt 0:02:08]} Nd7 {[%emt 0:09:32]} 10. g3 {[%emt 0:08:12]} c5 {[%emt 0:03:22]} 11. Bg2 {[%emt 0:02:09]} cxd4 {[%emt 0:09:32]} 12. Nxf6+ {[%emt 0:01:58]} Nxf6 {[%emt 0:06:41]} 13. Qxd4 {[%emt 0:01:00]} e5 {[%emt 0:02:14]} 14. Qc5 {[%emt 0:17:25]} Bg4 {[%emt 0:11:26]} 15. Nc3 {[%emt 0:02:40]} Qd4 {[%emt 0:00:41]} 16. Qb5 {[%emt 0:13:20]} a6 {[%emt 0:02:39]} 17. Qd3 {[%emt 0:06:25]} Rad8 {[%emt 0:04:22]} 18. Qe3 {[%emt 0:03:34]} Qc4 {[%emt 0:12:05]} 19. h3 {[%emt 0:08:08]} Bf5 {[%emt 0:00:40]} 20. Rc1 {[%emt 0:01:02]} h5 {[%emt 0:04:05]} 21. Qe2 {[%emt 0:01:05]} Qc8 {[%emt 0:01:22]} 22. O-O {[%emt 0:06:22]} Bxh3 {[%emt 0:00:26]} 23. Qxe5 {[%emt 0:00:20]} Bxg2 {[%emt 0:01:12]} 24. Kxg2 {[%emt 0:00:08]} h4 {[%emt 0:03:18]} 25. gxh4 {[%emt 0:04:02]} Rfe8 {[%emt 0:03:25]} 26. Qf4 {[%emt 0:00:52]} Re6 {[%emt 0:09:42]} 27. Rcd1 {[%emt 0:01:34]} Rde8 {[%emt 0:02:21]} 28. Rd4 {[%emt 0:00:39]} Nh5 {[%emt 0:01:48]} 29. Qf3 {[%emt 0:00:31]} Rg6+ {[%emt 0:00:20]} 30. Kh1 {[%emt 0:00:52]} Re5 {[%emt 0:00:49]} 31. Rg1 {[%emt 0:01:49]} Rf5 {[%emt 0:00:47]} 32. Qd3 {[%emt 0:02:17]} Qc6+ {[%emt 0:01:46]} 33. Qe4 {[%emt 0:00:45]} Rxg1+ {[%emt 0:01:41]} 34. Kxg1 {[%emt 0:00:01]} Qg6+ {[%emt 0:00:42]} 35. Qg2 {[%emt 0:01:03]} Qe6 {[%emt 0:00:14]} 36. Re4 {[%emt 0:00:37]} Qd7 {[%emt 0:00:13]} 37. Rg4 {[%emt 0:01:13]} g6 {[%emt 0:00:33]} 38. Qe4 {[%emt 0:00:28]} Nf6 {[%emt 0:00:22]} 39. Qg2 {[%emt 0:00:13]} Nxg4 {[%emt 0:00:11]} 40. Qxg4 Qd2 {[%emt 0:00:00]} 41. Ne4 {[%emt 0:03:56]} Qc1+ {[%emt 0:02:27]} 42. Kg2 {[%emt 0:00:16]} Qxb2 {[%emt 0:00:16]} 43. Nd6 {[%emt 0:02:30]} Rf6 {[%emt 0:05:48]} 44. Qc8+ {[%emt 0:06:16]} Kh7 {[%emt 0:00:06]} 45. Ne4 {[%emt 0:01:20]} Rf4 {[%emt 0:02:56]} 46. Ng5+ {[%emt 0:09:44]} Kg7 {[%emt 0:00:11]} 47. Qc7 Rf6 {[%emt 0:00:14]} 48. Ne4 {[%emt 0:01:13]} Rc6 {[%emt 0:00:16]} 49. Qf4 {[%emt 0:01:13]} Qd4 {[%emt 0:00:56]} 50. c3 {[%emt 0:01:58]} Qd5 {[%emt 0:00:46]} 51. f3 {[%emt 0:00:17]} Qf5 {[%emt 0:01:00]} 52. Qb8 {[%emt 0:00:44]} Rb6 {[%emt 0:00:38]} 53. a4 {[%emt 0:02:02]} Qd7 {[%emt 0:03:23]} 54. Qe5+ {[%emt 0:02:08]} f6 {[%emt 0:00:05]} 55. Qf4 {[%emt 0:00:43]} Rb2+ {[%emt 0:00:57]} 56. Kg3 {[%emt 0:00:23]} Qe7 {[%emt 0:00:08]} 57. Qc1 {[%emt 0:02:08]} Re2 {[%emt 0:00:38]} 58. Qg1 {[%emt 0:01:18]} Qe5+ {[%emt 0:00:18]} 59. Kh3 {[%emt 0:00:07]} Qf4 {[%emt 0:00:29]} 60. Qg3 {[%emt 0:01:34]} Qc1 {[%emt 0:00:49]} 61. Qc7+ {[%emt 0:00:09]} Kh6 {[%emt 0:00:15]} 62. Ng3 {[%emt 0:00:16]} Re8 {[%emt 0:01:21]} 63. h5 {[%emt 0:01:03]} Qe3 {[%emt 0:00:34]} 64. Qxb7 {[%emt 0:00:31]} Qe6+ {[%emt 0:00:49]} 65. Kg2 {[%emt 0:00:03]} gxh5 {[%emt 0:00:25]} 66. Qb4 {[%emt 0:00:29]} Qe5 {[%emt 0:00:38]} 67. f4 {[%emt 0:01:31]} Qd5+ {[%emt 0:00:07]} 68. Kh3 {[%emt 0:00:17]} Qf3 {[%emt 0:01:12]} 69. Qd6 {[%emt 0:00:34]} Qg4+ {[%emt 0:00:12]} 70. Kh2 {[%emt 0:00:11]} Qh4+ {[%emt 0:00:21]} 71. Kg2 {[%emt 0:00:08]} Rg8 {[%emt 0:00:20]} 72. f5 {[%emt 0:00:31]} a5 {[%emt 0:01:58]} 73. Kf2 {[%emt 0:01:47]} Qxg3+ {[%emt 0:00:07]} 74. Qxg3 {[%emt 0:00:04]} Rxg3 {[%emt 0:00:06]} 75. Kxg3 {[%emt 0:00:07]} Kg5 {[%emt 0:00:04]} 76. c4 {[%emt 0:00:15]} Kxf5 {[%emt 0:00:19]} 77. Kh4 {[%emt 0:00:08]} Ke5 {[%emt 0:00:17]} 78. Kxh5 {[%emt 0:00:04]} Kd4 {[%emt 0:00:18]} 79. Kg6 {[%emt 0:00:12]} Kxc4 {[%emt 0:00:06]} 0-1